bitfinex/quotes_SOLUSD_20250630
["timestamp","ask_amount","ask_price","bid_price","bid_amount"]
[1751266867458,0.1,150.53,150.52,102.15989201]
[1751266867771,0.1,150.53,150.52,97.07968255]
[1751266868359,0.1,150.53,150.52,102.15989201]
[1751266868670,0.1,150.53,150.52,9.47968255]
[1751266869870,5.4145803,150.53,150.49,99.68020946]
[1751266870072,10.49478976,150.53,150.5,2.47968279]
[1751266870259,5.4145803,150.53,150.51,2.47968279]
[1751266870462,5.08020946,150.52,150.49,87.6]
[1751266870663,5.08020946,150.51,150.5,2.47984916]
[1751266870868,5.08020946,150.51,150.47,7.2]
[1751266871093,5.08020946,150.51,150.48,2.48005129]
[1751266871379,5.08020946,150.52,150.49,2.48005129]
[1751266871676,10.39535376,150.52,150.49,0.2]
[1751266872549,10.39551446,150.51,150.49,0.2]
[1751266872780,5.08020946,150.5,150.49,0.2]
[1751266873661,1.5543,150.51,150.49,0.2]
[1751266873878,5.31502562,150.52,150.49,0.2]
[1751266874052,10.39523508,150.52,150.49,0.2]
[1751266874564,5.08020946,150.52,150.49,0.2]
[1751266874989,0.1,150.53,150.5,5.08020946]
[1751266875372,0.1,150.53,150.51,4.95739414]
[1751266875590,0.1,150.53,150.52,4.95739414]
[1751266877200,0.1,150.53,150.5,5.08020946]
[1751266877408,0.1,150.53,150.51,10.03742394]
[1751266877606,0.1,150.53,150.52,4.95721448]
[1751266879706,5.18020946,150.53,150.52,4.95721448]
[1751266879903,0.1,150.53,150.52,4.95721448]
[1751266880706,0.1,150.53,150.52,10.03742394]
[1751266880882,0.1,150.53,150.52,15.35233225]
[1751266881082,0.1,150.53,150.52,15.63665539]
[1751266881303,0.1,150.56,150.53,0.28432314]
[1751266881486,0.1,150.56,150.54,12.21394973]
[1751266881687,0.1,150.56,150.55,5.08020946]
[1751266881897,0.1,150.56,150.55,5.3645326]
[1751266882205,0.1,150.56,150.55,7.84368619]
[1751266883493,0.1,150.56,150.55,13.1575354]
[1751266884384,0.1,150.56,150.55,8.07732594]
[1751266884579,0.1,150.56,150.55,13.1575354]
[1751266886315,0.1,150.56,150.55,31.80718426]
[1751266886520,0.1,150.56,150.55,150.48739372]
[1751266887082,0.1,150.58,150.57,44.64964886]
[1751266887397,0.1,150.58,150.57,52.20901191]
[1751266888103,1198.58924549,150.6,150.59,5.31243774]
[1751266888291,1198.58924549,150.6,150.59,13.15612393]
[1751266889483,1198.58924549,150.6,150.59,8.07591447]
[1751266889690,1198.58924549,150.6,150.59,13.15612393]
[1751266890483,1198.58924549,150.6,150.59,100.75612393]
[1751266892105,1198.58924549,150.6,150.59,95.67591447]
[1751266892285,1198.58924549,150.6,150.59,100.75612393]
[1751266894398,1198.58924549,150.6,150.59,2.76347673]
[1751266894704,1198.58924549,150.6,150.59,7.55936305]
[1751266894900,1198.58924549,150.6,150.59,5.08020946]
[1751266896185,1198.58924549,150.6,150.57,97.99323841]
[1751266896590,1198.58924549,150.6,150.58,5.08020946]
[1751266897195,1198.58924549,150.6,150.57,99.81302895]
[1751266897382,1198.58924549,150.6,150.58,5.08020946]
[1751266897584,1198.58924549,150.6,150.57,104.89323841]
[1751266897809,1198.58924549,150.6,150.57,99.58020946]
[1751266898007,1198.58924549,150.6,150.57,104.89331921]
[1751266898392,1203.66945495,150.6,150.57,87.6]
[1751266898713,1208.98154663,150.6,150.56,6.9]
[1751266898904,1203.66945495,150.6,150.56,6.9]
[1751266899210,1198.58924549,150.6,150.57,5.08020946]
[1751266899425,1198.58924549,150.6,150.59,5.08020946]
[1751266899593,1198.58924549,150.6,150.59,5.3645326]
[1751266899910,1198.58924549,150.6,150.59,24.01418146]
[1751266900112,1198.58924549,150.6,150.59,26.48319315]
[1751266900612,1198.58924549,150.6,150.59,31.79563089]
[1751266900817,1198.58924549,150.6,150.59,31.30399363]
[1751266901518,1198.58924549,150.6,150.59,12.86165889]
[1751266902193,1198.58924549,150.6,150.59,7.78144943]
[1751266902387,1198.58924549,150.6,150.59,12.86165889]
[1751266902984,1198.58924549,150.6,150.59,13.14598203]
[1751266903490,1198.58924549,150.6,150.59,10.67697034]
[1751266903894,1198.58924549,150.6,150.59,50.24640974]
[1751266904093,1198.58924549,150.6,150.59,57.79352978]
[1751266904902,1198.58924549,150.6,150.59,52.71332032]
[1751266905106,1198.58924549,150.6,150.59,57.79352978]
[1751266905498,1198.58924549,150.6,150.59,62.72486857]
[1751266907713,1198.58924549,150.6,150.59,12.47845883]
[1751266907916,1198.58924549,150.6,150.58,17.41288224]
[1751266908102,1198.58924549,150.6,150.59,5.08020946]
[1751266908301,1198.58924549,150.6,150.59,5.3645326]
[1751266908501,1198.58924549,150.6,150.59,10.29451395]
[1751266909331,1198.58924549,150.6,150.59,15.60695169]
[1751266909728,1198.58924549,150.6,150.59,10.67697034]
[1751266910024,1198.58924549,150.6,150.58,17.41286871]
[1751266910216,1198.58924549,150.6,150.59,5.08020946]
[1751266912227,1198.58924549,150.6,150.58,12.33265925]
[1751266912526,1198.58924549,150.6,150.58,0.2]
[1751266912726,6.59160946,150.59,150.58,0.2]
[1751266913636,11.9040472,150.59,150.58,0.2]
[1751266915503,43.83479042,150.59,150.52,6.82]
[1751266915733,5.08020946,150.54,150.52,6.82]
[1751266916051,5.08020946,150.55,150.52,6.82]
[1751266916705,5.08020946,150.56,150.52,6.82]
[1751266916907,6.82383774,150.59,150.53,5.08020946]
[1751266917135,5.08020946,150.58,150.53,5.08020946]
[1751266917621,5.08020946,150.57,150.52,17.21505088]
[1751266918519,5.08020946,150.57,150.53,4.93774126]
[1751266918723,5.08020946,150.57,150.52,17.21505088]
[1751266918925,5.08020946,150.57,150.53,10.01794975]
[1751266919106,5.08020946,150.58,150.53,5.08020946]
[1751266919307,5.08020946,150.58,150.54,10.01990814]
[1751266919508,5.08020946,150.57,150.53,5.08020946]
[1751266920525,11.9040717,150.59,150.53,5.31446238]
[1751266920830,11.9040717,150.59,150.54,5.08020946]
[1751266921144,5.08020946,150.55,150.52,87.6]
[1751266921312,8.0992,150.54,150.53,5.14231135]
[1751266921521,6.72910946,150.54,150.53,0.2]
[1751266921906,12.04331166,150.54,150.53,0.2]
[1751266923034,6.9631022,150.54,150.53,0.2]
[1751266923246,12.04331166,150.54,150.53,0.2]
[1751266925341,18.64964886,150.53,150.51,0.2]
[1751266925633,23.72985832,150.52,150.51,0.2]
[1751266926520,29.04476663,150.52,150.51,0.2]
[1751266927750,29.32908977,150.52,150.51,0.2]
[1751266930049,44.64964886,150.5,150.49,0.2]
[1751266930256,51.35505832,150.5,150.49,0.2]
[1751266930554,32.70540946,150.5,150.49,0.2]
[1751266930756,38.02102407,150.5,150.49,0.2]
[1751266931737,10.39559471,150.51,150.49,0.2]
[1751266932145,5.08020946,150.51,150.49,0.2]
[1751266932336,55.36204886,150.54,150.49,0.2]
[1751266932337,5.31467774,150.53,150.49,0.2]
[1751266932544,5.08020946,150.51,150.49,0.2]
[1751266932854,26.0,150.51,150.49,0.2]
[1751266934349,31.08020946,150.51,150.49,0.2]
[1751266934864,36.39561568,150.51,150.49,0.2]
[1751266935154,31.08020946,150.51,150.49,0.2]
[1751266935566,36.39549518,150.51,150.49,0.2]
[1751266936144,5.08020946,150.5,150.49,0.2]
[1751266936350,36.39549518,150.51,150.49,0.2]
[1751266936648,10.39523981,150.52,150.49,0.2]
[1751266936954,10.39487141,150.53,150.49,0.2]
[1751266938040,5.31466195,150.53,150.49,0.2]
[1751266938441,10.39487141,150.53,150.49,0.2]
[1751266939549,5.08020946,150.53,150.49,5.28020946]
[1751266939863,10.39481321,150.53,150.49,5.28020946]
[1751266940067,5.08020946,150.53,150.49,5.28020946]
[1751266940242,36.39448136,150.54,150.49,10.59613863]
[1751266940444,36.39448136,150.54,150.5,5.08020946]
[1751266940847,31.3142719,150.54,150.5,5.08020946]
[1751266941167,36.39448136,150.54,150.49,5.28020946]
[1751266941362,5.08020946,150.53,150.49,0.2]
[1751266941541,5.08020946,150.53,150.49,5.28020946]
[1751266941862,10.39479941,150.53,150.49,0.2]
[1751266942061,10.39479941,150.53,150.49,5.28020946]
[1751266942281,5.08020946,150.53,150.49,5.28020946]
[1751266942639,10.39491208,150.53,150.49,5.28020946]
[1751266944168,10.39491208,150.53,150.49,0.2]
[1751266945262,10.39491208,150.53,150.49,5.28020946]
[1751266946147,5.31470262,150.53,150.49,5.28020946]
[1751266946392,7.8467,150.58,150.52,5.08020946]
[1751266946544,10.393,150.58,150.53,5.08020946]
[1751266946748,5.31279054,150.58,150.53,5.08020946]
[1751266946946,10.393,150.58,150.53,5.08020946]
[1751266948354,5.31279054,150.58,150.54,5.08020946]
[1751266948971,10.393,150.58,150.49,107.84968856]
[1751266949155,5.08020946,150.55,150.51,5.08020946]
[1751266949744,5.08020946,150.53,150.49,0.2]
[1751266950065,5.08020946,150.52,150.49,0.2]
[1751266951562,10.39508931,150.53,150.49,0.2]
[1751266951877,36.39430866,150.55,150.5,5.08020946]
[1751266952061,36.39430866,150.55,150.49,5.51591119]
[1751266952062,36.39430866,150.55,150.51,5.08020946]
[1751266952459,36.39430866,150.55,150.5,5.08020946]
[1751266952657,5.08020946,150.53,150.49,5.28020946]
[1751266953253,5.08020946,150.53,150.49,0.2]
[1751266953586,5.08020946,150.52,150.49,0.2]
[1751266954451,10.39513953,150.52,150.49,0.2]
[1751266954652,10.49513953,150.52,150.49,0.2]
[1751266955477,5.08020946,150.5,150.49,0.2]
[1751266955679,5.08020946,150.51,150.49,0.2]
[1751266956483,10.395586,150.51,150.49,0.2]
[1751266957485,5.31537654,150.51,150.49,0.2]
[1751266958353,10.49521569,150.52,150.49,0.2]
[1751266958865,0.1,150.52,150.49,5.28020946]
[1751266959263,5.41495731,150.52,150.49,0.2]
[1751266959597,0.1,150.52,150.5,5.08020946]
[1751266959782,0.1,150.52,150.51,7.55896143]
[1751266959968,0.1,150.52,150.51,2.47875197]
[1751266960282,0.1,150.52,150.51,7.55896143]
[1751266961074,0.1,150.52,150.51,12.87422287]
[1751266961277,0.1,150.52,150.51,31.80819487]
[1751266961796,5.41252507,150.59,150.52,0.28432314]
[1751266961996,0.1,150.59,150.55,5.08020946]
[1751266962175,0.1,150.59,150.56,2.47844166]
[1751266962370,5.4124704,150.59,150.55,5.08020946]
[1751266962570,5.4124704,150.59,150.56,2.47803445]
[1751266962774,10.49267986,150.59,150.55,5.08020946]
[1751266962977,5.4124704,150.59,150.56,2.47803413]
[1751266963195,5.4124704,150.59,150.54,5.08020946]
[1751266963196,10.49267986,150.59,150.54,5.08020946]
[1751266963496,10.49267986,150.59,150.55,2.47741385]
[1751266963797,5.4124704,150.59,150.54,5.08020946]
[1751266963965,5.08020946,150.58,150.55,2.47768496]
[1751266964165,5.08020946,150.58,150.53,11.84020946]
[1751266964388,5.08020946,150.58,150.54,2.4774236]
[1751266964581,5.08020946,150.58,150.55,2.4774236]
[1751266964788,5.08020946,150.58,150.53,11.84020946]
[1751266965095,5.08020946,150.58,150.54,2.47746033]
[1751266965301,5.08020946,150.58,150.55,2.47746033]
[1751266965507,5.4124704,150.59,150.55,5.08020946]
[1751266966580,10.49267986,150.59,150.55,5.08020946]
[1751266967096,10.49267986,150.59,150.54,5.08020946]
[1751266968262,5.4124704,150.59,150.55,5.08020946]
[1751266968461,0.1,150.59,150.56,5.08020946]
[1751266969093,0.1,150.59,150.55,5.08020946]
[1751266969390,0.1,150.59,150.54,5.31413264]
[1751266969593,0.1,150.59,150.55,5.08020946]
[1751266971391,10.49288261,150.59,150.53,99.67432126]
[1751266971591,10.49288261,150.59,150.54,5.08020946]
[1751266971899,5.41267315,150.59,150.54,5.08020946]
[1751266972071,10.49288261,150.59,150.54,5.08020946]
[1751266972992,10.49288261,150.59,150.55,2.47382611]
[1751266973193,10.49288261,150.59,150.54,10.39439802]
[1751266973492,5.08020946,150.57,150.53,99.44020946]
[1751266973800,5.08020946,150.58,150.53,99.44020946]
[1751266974380,5.08020946,150.58,150.54,2.47404597]
[1751266974695,5.08020946,150.58,150.53,99.44020946]
[1751266975073,5.31332085,150.57,150.53,99.44020946]
[1751266975277,10.39311039,150.58,150.53,99.44020946]
[1751266976900,5.31290093,150.58,150.53,99.44020946]
[1751266977079,5.08020946,150.57,150.53,99.44020946]
[1751266977402,5.08020946,150.56,150.53,6.76]
[1751266977596,5.08020946,150.55,150.53,6.76]
[1751266978181,10.39347943,150.57,150.53,11.84020946]
[1751266978700,10.39347943,150.57,150.53,5.08020946]
[1751266979619,10.39347943,150.57,150.52,10.39509661]
[1751266979905,5.08020946,150.56,150.51,17.07535939]
[1751266980123,5.08020946,150.56,150.52,2.476327]
[1751266980281,5.08020946,150.56,150.51,17.07535939]
[1751266980481,5.08020946,150.56,150.52,7.55669265]
[1751266980682,5.08020946,150.56,150.52,5.08020946]
[1751266981404,10.39379377,150.56,150.53,2.47676057]
[1751266981708,10.39379377,150.56,150.51,11.76020946]
[1751266981893,10.39379377,150.56,150.52,2.47693812]
[1751266982095,10.39379377,150.56,150.51,11.76020946]
[1751266982421,10.39379377,150.56,150.52,2.47693937]
[1751266982624,10.39379377,150.56,150.51,11.76020946]
[1751266982911,10.39379377,150.56,150.52,2.47731121]
[1751266983087,10.39379377,150.56,150.51,11.76020946]
[1751266983280,5.08020946,150.55,150.52,2.47731121]
[1751266983737,5.08020946,150.55,150.5,6.62340946]
[1751266984001,5.08020946,150.55,150.51,2.47775477]
[1751266984210,5.08020946,150.55,150.52,2.47775477]
[1751266984506,10.39439528,150.55,150.5,6.62340946]
[1751266984707,10.49277094,150.59,150.54,5.08020946]
[1751266984911,0.1,150.59,150.56,5.08020946]
[1751266985928,5.41246246,150.59,150.55,5.08020946]
[1751266986095,10.49267192,150.59,150.56,4.95580688]
[1751266986414,10.49267192,150.59,150.55,5.08020946]
[1751266986586,10.49267192,150.59,150.56,4.9558804]
[1751266986785,10.49267192,150.59,150.55,5.08020946]
[1751266987018,0.1,150.59,150.56,10.03608888]
[1751266987215,0.1,150.59,150.57,4.95572563]
[1751266987419,0.1,150.59,150.55,5.31379419]
[1751266987621,0.1,150.59,150.51,106.24964886]
[1751266987622,5.08020946,150.58,150.56,7.43324113]
[1751266987833,5.08020946,150.58,150.57,4.95549409]
[1751266988133,10.393,150.58,150.53,5.08020946]
[1751266988420,5.08020946,150.56,150.54,7.4338965]
[1751266988728,5.08020946,150.56,150.52,0.2]
[1751266988903,5.08020946,150.56,150.53,7.43484352]
[1751266989104,5.08020946,150.56,150.54,7.43484352]
[1751266989316,5.08020946,150.56,150.52,0.2]
[1751266989519,5.08020946,150.56,150.53,7.43557633]
[1751266989720,5.08020946,150.56,150.54,7.43557633]
[1751266989913,5.08020946,150.56,150.52,0.2]
[1751266990115,5.08020946,150.56,150.53,7.43557633]
[1751266990311,5.08020946,150.56,150.54,7.43557633]
[1751266990626,5.08020946,150.56,150.52,5.28020946]
[1751266990831,5.08020946,150.56,150.53,7.4363767]
[1751266991031,0.1,150.59,150.54,7.4363767]
[1751266991213,5.18020946,150.59,150.55,4.95758447]
[1751266991416,5.18020946,150.59,150.54,5.08020946]
[1751266991610,5.18020946,150.59,150.55,7.43677162]
[1751266991816,5.18020946,150.59,150.56,4.95784775]
[1751266992015,10.4927572,150.59,150.54,5.08020946]
[1751266992216,10.4927572,150.59,150.55,7.43666331]
[1751266992532,10.4927572,150.59,150.56,4.9577762]
[1751266992720,5.08020946,150.57,150.52,0.2]
[1751266993025,5.08020946,150.57,150.53,7.43668767]
[1751266993234,5.08020946,150.57,150.54,7.43668767]
[1751266993413,5.08020946,150.57,150.55,7.43668767]
[1751266993743,5.08020946,150.57,150.56,4.95779178]
[1751266994135,5.41254774,150.59,150.56,4.95779178]
[1751266994320,5.08020946,150.58,150.54,5.08020946]
[1751266994630,5.08020946,150.58,150.52,0.2]
[1751266994631,5.08020946,150.57,150.55,4.95770562]
[1751266994826,5.08020946,150.57,150.52,5.28020946]
[1751266995004,5.08020946,150.57,150.53,12.51709856]
[1751266995210,5.08020946,150.57,150.54,4.95792607]
[1751266995404,5.08020946,150.57,150.55,4.95792607]
[1751266995713,5.08020946,150.57,150.53,5.08020946]
[1751266996032,5.08020946,150.57,150.54,4.95816228]
[1751266996427,10.39353045,150.57,150.53,5.08020946]
[1751266997137,10.39353045,150.57,150.54,2.47933411]
[1751266997340,10.39353045,150.57,150.53,5.08020946]
[1751266997518,10.39353045,150.57,150.54,2.47949585]
[1751266997843,10.39353045,150.57,150.53,5.08020946]
[1751266998036,10.39353045,150.57,150.54,2.47949585]
[1751266998241,10.39353045,150.57,150.53,5.08020946]
[1751266998543,10.39353045,150.57,150.54,2.47979349]
[1751266998712,10.39353045,150.57,150.55,2.47979349]
[1751266998908,5.08020946,150.56,150.52,0.2]
[1751266999122,5.08020946,150.56,150.53,2.48001256]
[1751266999426,5.08020946,150.56,150.52,0.2]
[1751266999634,5.08020946,150.55,150.53,2.48037907]
[1751266999936,5.08020946,150.55,150.52,0.2]
[1751267000138,10.3942973,150.55,150.53,2.48037956]
[1751267000331,10.3942973,150.55,150.52,0.2]
[1751267000536,10.3942973,150.55,150.53,2.4807185]
[1751267000731,10.3942973,150.55,150.52,0.2]
[1751267000929,5.31408784,150.55,150.53,2.48071899]
[1751267001130,10.3942973,150.55,150.52,0.2]
[1751267001319,10.3942973,150.55,150.53,2.48082788]
[1751267001519,10.3942973,150.55,150.52,0.2]
[1751267002318,10.3942973,150.55,150.53,2.48270776]
[1751267002634,32.1229,150.58,150.52,0.2]
[1751267002635,5.08020946,150.56,150.52,5.28020946]
[1751267002835,5.08020946,150.56,150.53,2.48263687]
[1751267003036,5.08020946,150.56,150.52,5.28020946]
[1751267003343,5.08020946,150.56,150.53,2.48263687]
[1751267003514,5.08020946,150.56,150.52,5.28020946]
[1751267003713,5.31314338,150.57,150.53,2.48360351]
[1751267003918,5.08020946,150.56,150.54,2.48349356]
[1751267004139,10.39335284,150.57,150.52,5.28020946]
[1751267004337,10.39335284,150.57,150.53,2.48439222]
[1751267004537,5.31314338,150.57,150.54,2.48439222]
[1751267004732,36.39308429,150.58,150.55,2.48439222]
[1751267004946,0.1,150.57,150.55,5.08020946]
[1751267005726,0.1,150.57,150.54,5.08020946]
[1751267005926,0.1,150.57,150.55,2.48477973]
[1751267006121,0.1,150.57,150.56,2.48477973]
[1751267006328,0.1,150.57,150.54,5.08020946]
[1751267006645,5.08020946,150.56,150.52,0.2]
[1751267007316,5.08020946,150.56,150.52,5.28020946]
[1751267007521,10.49337073,150.57,150.52,5.28020946]
[1751267007946,10.49337073,150.57,150.52,0.2]
[1751267007947,5.08020946,150.54,150.52,0.2]
[1751267008150,23.72985832,150.53,150.52,0.2]
[1751267008329,29.32873669,150.53,150.52,0.2]
[1751267009261,26.0,150.5,150.49,0.2]
[1751267009460,31.08020946,150.5,150.49,0.2]
[1751267010846,36.39582407,150.5,150.49,0.2]
[1751267011047,31.31561461,150.5,150.49,0.2]
[1751267011225,36.39582407,150.5,150.49,0.2]
[1751267011852,26.0,150.5,150.49,0.2]
[1751267012033,10.39554415,150.51,150.49,0.2]
[1751267013249,5.08020946,150.5,150.49,0.2]
[1751267015248,24.01418146,150.5,150.49,0.2]
[1751267015452,38.1424557,150.5,150.49,0.2]
[1751267015762,44.933972,150.48,150.47,0.2]
[1751267016049,50.01418146,150.48,150.47,0.2]
[1751267016566,55.09439092,150.48,150.47,0.2]
[1751267017240,60.41071202,150.48,150.47,0.2]
[1751267017551,88.85071202,150.48,150.47,0.2]
[1751267017742,89.68138719,150.48,150.47,0.2]
[1751267017942,79.52096827,150.48,150.47,0.2]
[1751267018159,89.68138719,150.48,150.47,0.2]
[1751267019433,36.73504886,150.43,150.4,0.2]
[1751267019632,36.73504886,150.43,150.35,0.2]
[1751267019633,0.28432314,150.41,150.35,0.2]
[1751267019871,31.08020946,150.38,150.35,0.2]
[1751267020035,5.08020946,150.4,150.35,5.28020946]
[1751267021159,5.08020946,150.4,150.36,5.08020946]
[1751267021858,5.08020946,150.37,150.35,0.2]
[1751267022032,5.08020946,150.36,150.35,0.2]
[1751267024155,10.40077343,150.36,150.35,0.2]
[1751267024452,5.08020946,150.36,150.35,0.2]
[1751267026158,24.25382836,150.38,150.35,0.2]
[1751267026357,5.08020946,150.36,150.35,0.2]
[1751267027255,18.933972,150.37,150.35,0.2]
[1751267027459,5.08020946,150.36,150.35,0.2]
[1751267028171,31.08020946,150.37,150.35,0.2]
[1751267028872,26.0,150.37,150.35,0.2]
[1751267029047,5.08020946,150.36,150.35,0.2]
[1751267029245,26.0,150.37,150.35,0.2]
[1751267029464,5.08020946,150.36,150.35,0.2]
[1751267030566,26.0,150.37,150.35,0.2]
[1751267031063,5.08020946,150.36,150.35,0.2]
[1751267031463,103.01994457,150.4,150.35,10.60110863]
[1751267031659,103.01994457,150.4,150.37,5.08020946]
[1751267032168,103.01994457,150.4,150.36,5.08020946]
[1751267032671,5.08020946,150.39,150.35,10.60110863]
[1751267032962,108.10015403,150.4,150.35,10.60110863]
[1751267035154,108.10015403,150.4,150.36,5.08020946]
[1751267035357,103.01994457,150.4,150.36,5.08020946]
[1751267035550,113.41933171,150.4,150.35,10.60110863]
[1751267035750,5.08020946,150.38,150.35,0.2]
[1751267037253,5.08020946,150.36,150.35,0.2]
[1751267038245,5.31999274,150.38,150.35,0.2]
[1751267038472,5.08020946,150.36,150.35,0.2]
[1751267040169,10.40077343,150.36,150.35,0.2]
[1751267042076,29.05042229,150.36,150.35,0.2]
[1751267042273,29.33474543,150.36,150.35,0.2]
[1751267043066,10.40077343,150.36,150.35,0.2]
[1751267043476,5.32056397,150.36,150.35,0.2]
[1751267043646,10.40077343,150.36,150.35,0.2]
[1751267044153,5.32056397,150.36,150.35,0.2]
[1751267044354,10.40077343,150.36,150.35,0.2]
[1751267044582,5.08020946,150.36,150.35,0.2]
[1751267044871,31.32033563,150.37,150.35,0.2]
[1751267045078,5.08020946,150.38,150.35,0.2]
[1751267046154,5.31950262,150.39,150.35,0.2]
[1751267046350,129.01994457,150.4,150.36,5.08020946]
[1751267046555,103.01994457,150.4,150.38,5.08020946]
[1751267046769,103.01994457,150.4,150.35,5.52090575]
[1751267046770,103.01994457,150.4,150.37,5.08020946]
[1751267047152,1710.18265985,150.3,149.07,0.99]
[1751267047358,1546.68162539,150.3,150.29,16.74041892]
[1751267049055,1546.68162539,150.3,150.29,22.06346103]
[1751267049279,1546.68162539,150.3,150.29,40.99743303]
[1751267049786,1546.68162539,150.3,150.29,35.91722357]
[1751267050076,1546.68162539,150.3,150.29,35.63290043]
[1751267050283,1546.68162539,150.3,150.29,42.12112357]
[1751267051677,1462.24187041,150.3,150.29,47.20133303]
[1751267051877,1426.32467638,150.3,150.29,57.20133303]
[1751267052083,1419.65807638,150.3,150.29,57.20133303]
[1751267052573,1419.65807638,150.3,150.29,42.12112357]
[1751267053078,1419.65807638,150.3,150.29,47.20133303]
[1751267053670,1419.65807638,150.3,150.29,42.12112357]
[1751267054468,1335.2183214,150.3,150.29,42.12112357]
[1751267056085,1335.2183214,150.3,150.29,41.83680043]
[1751267056469,1335.2183214,150.3,150.29,42.12112357]
[1751267057184,1335.2183214,150.3,150.29,129.72112357]
[1751267060576,1335.2183214,150.3,150.29,123.51722357]
[1751267062468,1335.2183214,150.3,150.29,118.43701411]
[1751267062678,1335.2183214,150.3,150.29,123.51722357]
[1751267063478,1335.2183214,150.3,150.29,104.86757471]
[1751267063910,1335.2183214,150.3,150.29,104.58325157]
[1751267064291,1335.2183214,150.3,150.29,104.86757471]
[1751267065703,1335.2183214,150.3,150.29,104.58325157]
[1751267067100,1335.2183214,150.3,150.29,87.6]
[1751267067307,1335.2183214,150.3,150.29,90.08391458]
[1751267067504,1340.29853086,150.3,150.29,2.48391458]
[1751267067814,1335.2183214,150.3,150.29,2.48391458]
[1751267068815,1335.2183214,150.3,150.29,7.42992691]
[1751267069311,1335.2183214,150.3,150.29,4.94601233]
[1751267070107,1340.29853086,150.3,150.29,4.94601233]
[1751267070315,1340.54100935,150.3,150.29,4.94601233]
[1751267070517,1345.62121881,150.3,150.29,4.94601233]
[1751267070901,1345.62121881,150.3,150.28,0.2]
[1751267071430,5.08020946,150.29,150.28,0.2]
[1751267071589,1340.54100935,150.3,150.28,0.2]
[1751267071912,1335.2183214,150.3,150.28,0.2]
[1751267072626,5.08020946,150.29,150.28,0.2]
[1751267074889,1340.29853086,150.3,150.28,0.2]
[1751267075081,1345.62122977,150.3,150.28,0.2]
[1751267075393,5.08020946,150.29,150.28,0.2]
[1751267076209,10.40325157,150.29,150.28,0.2]
[1751267076514,5.08020946,150.29,150.28,0.2]
[1751267077109,5.08020946,150.29,150.22,0.48432314]
[1751267077110,20.28494886,150.28,150.22,0.2]
[1751267077317,11.21360946,150.23,150.22,0.2]
[1751267077489,12.84890946,150.23,150.22,0.2]
[1751267077818,18.17407753,150.23,150.22,0.2]
[1751267078397,18.67407753,150.23,150.22,0.2]
[1751267078795,13.34890946,150.23,150.22,0.2]
[1751267080018,18.64964886,150.18,150.07,6.54]
[1751267080200,5.08020946,150.12,150.07,11.8708456]
[1751267080401,5.08020946,150.12,150.08,5.08020946]
[1751267080909,1.6215,150.15,150.08,5.08020946]
[1751267081092,1.6215,150.15,150.13,5.08020946]
[1751267081489,1.6215,150.15,150.12,5.08020946]
[1751267082012,1.6215,150.15,150.12,10.40897376]
[1751267082204,1.6215,150.15,150.12,5.3287643]
[1751267082404,6.70170946,150.15,150.11,5.32932273]
[1751267082902,5.08020946,150.14,150.11,5.32932273]
[1751267083425,5.08020946,150.14,150.1,10.40973039]
[1751267084826,5.08020946,150.12,150.09,26.0]
[1751267084997,5.08020946,150.13,150.09,36.41018615]
[1751267085318,1.6215,150.15,150.11,5.08020946]
[1751267085494,1.6215,150.15,150.09,44.65531482]
[1751267085694,1.6215,150.15,150.11,5.08020946]
[1751267085912,6.70170946,150.15,150.11,5.08020946]
[1751267086101,1.6215,150.15,150.12,10.40927953]
[1751267086311,6.08020946,150.18,150.13,5.08020946]
[1751267086616,6.08020946,150.18,150.14,5.08020946]
[1751267087592,6.08020946,150.18,150.14,10.40847862]
[1751267087898,1.0,150.18,150.14,10.40847862]
[1751267088114,1.0,150.18,150.15,5.08020946]
[1751267089624,1.0,150.18,150.15,10.40805482]
[1751267090619,5.08020946,150.17,150.14,6.54]
[1751267090799,6.08020946,150.18,150.14,6.54]
[1751267090993,6.08020946,150.18,150.14,11.62020946]
[1751267092227,6.08020946,150.18,150.14,16.94856039]
[1751267093031,6.08020946,150.18,150.14,5.08020946]
[1751267093198,1.0,150.18,150.14,5.08020946]
[1751267093401,6.08020946,150.18,150.13,5.08020946]
[1751267093830,6.08020946,150.18,150.12,26.0]
[1751267093831,6.08020946,150.18,150.14,5.08020946]
[1751267094219,5.08020946,150.17,150.12,26.0]
[1751267094419,5.08020946,150.15,150.11,10.40934586]
[1751267094622,6.32697717,150.18,150.1,5.08020946]
[1751267094810,5.08020946,150.16,150.11,5.08020946]
[1751267095311,5.08020946,150.16,150.12,5.08020946]
[1751267095504,6.08020946,150.18,150.13,5.08020946]